fUST/lending_fUST_20250612
["ID","MTS","AMOUNT","RATE_DAILY","PERIOD"]
[365517345,1749735041825,-1481.06,0.00022191,4]
[365517346,1749735041835,-949.04,0.00022191,4]
[365517347,1749735041934,-722.88,0.00022191,4]
[365517348,1749735041944,-460.0,0.00022191,4]
[365517349,1749735041953,-460.0,0.00022191,4]
[365517350,1749735041963,-203.99,0.00022191,4]
[365517351,1749735041972,-420.0,0.00022203,2]
[365517352,1749735041982,-1000.0,0.00022274,2]
[365517353,1749735041991,-658.08549629,0.00022279,6]
[365517354,1749735042000,-3913.50555711,0.00022299,2]
[365517355,1749735042010,-500.0,0.00022356,2]
[365517356,1749735042018,-658.08549629,0.00022417,7]
[365517357,1749735042027,-2598.15,0.00022424,2]
[365517358,1749735042037,-2115.0,0.0002243,4]
[365517359,1749735042046,-500.0,0.00022441,2]
[365517360,1749735042055,-500.0,0.00022441,2]
[365517361,1749735042064,-160.0,0.00022441,2]
[365517362,1749735042074,-460.0,0.00022465,2]
[365517363,1749735042083,-865.71,0.00022465,4]
[365517364,1749735042093,-1729.02,0.00022465,4]
[365517365,1749735042103,-852.72,0.00022465,4]
[365517366,1749735042112,-1479.22,0.00022465,4]
[365517367,1749735042122,-460.0,0.00022465,4]
[365517368,1749735042131,-490.26,0.00022465,4]
[365517369,1749735042141,-1026.02,0.00022465,4]
[365517370,1749735042151,-570.85,0.00022465,4]
[365517371,1749735042161,-771.75,0.00022465,4]
[365517372,1749735042170,-460.0,0.00022465,4]
[365517373,1749735042180,-460.0,0.00022465,4]
[365517374,1749735042190,-850.83,0.00022465,4]
[365517375,1749735042200,-460.0,0.00022465,4]
[365517376,1749735042209,-460.0,0.00022465,4]
[365517377,1749735042218,-663.06,0.00022465,4]
[365517378,1749735042229,-460.0,0.00022465,4]
[365517379,1749735042239,-644.15,0.00022465,4]
[365517380,1749735042250,-1920.24,0.00022465,4]
[365517381,1749735042260,-1481.06,0.00022465,4]
[365517382,1749735042270,-949.04,0.00022465,4]
[365517383,1749735042281,-722.88,0.00022465,4]
[365517384,1749735042290,-522.37,0.00022465,4]
[365517385,1749735042299,-460.0,0.00022465,4]
[365517386,1749735042309,-500.0,0.00022466,2]
[365517387,1749735042318,-500.0,0.00022466,2]
[365517388,1749735042328,-500.0,0.00022466,2]
[365517389,1749735042337,-500.0,0.00022466,2]
[365517390,1749735042346,-500.0,0.00022466,2]
[365517391,1749735042356,-500.0,0.00022466,2]
[365517392,1749735042366,-500.0,0.00022466,2]
[365517393,1749735042376,-500.0,0.00022466,2]
[365517394,1749735042385,-383.39902185,0.00022466,2]
[365517395,1749735042395,-500.0,0.00022466,2]
[365517396,1749735042414,-500.0,0.00022466,2]
[365517397,1749735042426,-500.0,0.00022466,2]
[365517398,1749735042436,-500.0,0.00022466,2]
[365517399,1749735042446,-500.0,0.00022466,2]
[365517400,1749735042457,-500.0,0.00022466,2]
[365517401,1749735042467,-412.71357031,0.00022521,2]
[365517402,1749735042477,-500.0,0.00022521,2]
[365517403,1749735042487,-3131.65762344,0.0002254,2]
[365517404,1749735042496,-658.08549629,0.00022555,7]
[365517405,1749735042506,-1500.0,0.00022646,2]
[365517406,1749735042516,-658.08549629,0.00022693,7]
[365517407,1749735042532,-1500.0,0.00022713,2]
[365517408,1749735042541,-1500.0,0.00022713,2]
[365517409,1749735042551,-1999.42,0.00022729,3]
[365517410,1749735042562,-999.72,0.00022729,3]
[365517411,1749735042573,-499.86,0.00022729,3]
[365517412,1749735042583,-3913.50555711,0.00022733,2]
[365517413,1749735042592,-460.0,0.00022739,2]
[365517414,1749735042605,-865.71,0.00022739,4]
[365517415,1749735042615,-1729.02,0.00022739,4]
[365517416,1749735042625,-852.72,0.00022739,4]
[365517417,1749735042635,-1479.22,0.00022739,4]
[365517418,1749735042645,-460.0,0.00022739,4]
[365517419,1749735042655,-490.26,0.00022739,4]
[365517420,1749735042666,-1026.02,0.00022739,4]
[365517421,1749735042676,-771.75,0.00022739,4]
[365517422,1749735042686,-460.0,0.00022739,4]
[365517423,1749735042696,-460.0,0.00022739,4]
[365517424,1749735042706,-850.83,0.00022739,4]
[365517425,1749735042716,-399.49,0.00022739,4]
[365517426,1749735042726,-460.0,0.00022739,4]
[365517427,1749735042735,-663.06,0.00022739,4]
[365517428,1749735042745,-460.0,0.00022739,4]
[365517429,1749735042755,-644.15,0.00022739,4]
[365517430,1749735042765,-1920.24,0.00022739,4]
[365517432,1749735042775,-1481.06,0.00022739,4]
[365517434,1749735042785,-949.04,0.00022739,4]
[365517435,1749735042795,-722.88,0.00022739,4]
[365517436,1749735042805,-460.0,0.00022739,4]
[365517437,1749735042814,-169.91100383,0.00022767,2]
[365517438,1749735042823,-43757.3213423,0.000228,7]
[365517439,1749735042832,-424.66240697,0.00022822,2]
[365517440,1749735042842,-658.08549629,0.00022831,8]
[365517441,1749735042854,-653.0,0.00022833,2]
[365517442,1749735042864,-2160.0,0.00022833,2]
[365517444,1749735042874,-405.0,0.00022833,2]
[365517446,1749735042884,-963.0,0.00022833,2]
[365517448,1749735042894,-1776.78542401,0.00022845,2]
[365517450,1749735042904,-211737.69795943,0.00022947,2]
[365517469,1749735043573,-904.15,0.00021369,4]
[365517470,1749735043589,-904.15,0.00021643,4]
[365517471,1749735043604,-904.15,0.00021917,4]
[365517472,1749735043617,-904.15,0.00022191,4]
[365517473,1749735043631,-904.15,0.00022465,4]
[365517474,1749735043646,-904.15,0.00022739,4]
[365517475,1749735043658,-48010.13462429,0.00022947,2]
[365517521,1749735278874,4848.0,0.00024948,60]
[365517529,1749735522634,-184.561926,0.00019958,2]
[365517530,1749735522658,-179.14218996,0.00020001,2]
[365517531,1749735522684,-500.0,0.00020164,2]
[365517532,1749735522706,-298.5703166,0.00020165,2]
[365517533,1749735522734,-1074.48,0.00020477,2]
[365517534,1749735522758,-300.0,0.00020786,2]
[365517535,1749735522781,-300.0,0.00020786,2]
[365517536,1749735522804,-300.0,0.00020787,2]
[365517537,1749735522826,-300.0,0.00020787,2]
[365517538,1749735522848,-1200.0,0.00020787,2]
[365517539,1749735522871,-21363.24556744,0.00020788,2]
[365517541,1749735585660,-500.0,0.00020164,2]
[365517542,1749735585684,-1060.81,0.00020478,2]
[365517543,1749735585709,-3536.75443256,0.00020788,2]
[365517544,1749735585731,-229.7508257,0.00021064,2]
[365517545,1749735585753,-424.26423502,0.00021064,2]
[365517546,1749735585777,-210.501,0.00021064,2]
[365517547,1749735585804,-300.0,0.00021093,2]
[365517548,1749735585826,-500.0,0.00021094,2]
[365517549,1749735585849,-500.0,0.00021094,2]
[365517550,1749735585872,-500.0,0.00021094,2]
[365517551,1749735586026,-237.91950672,0.00021094,2]
[365517552,1749735588328,159.678411,0.00013699,2]
[365517585,1749736214606,10000.0,0.00024958,60]
[365517619,1749736232514,-863.84,0.000189,2]
[365517627,1749736232574,-438.32,0.000189,2]
[365517677,1749736239538,-794.50284568,0.000189,2]
[365517678,1749736239548,-1200.0,0.00019606,2]
[365517679,1749736239560,-13097.2097296,0.00019607,2]
[365517680,1749736239570,-162.0,0.000198,2]
[365517681,1749736239580,-162.0,0.000198,2]
[365517682,1749736239590,-977.4255787,0.00019863,2]
[365517683,1749736239600,-162.0,0.0002,2]
[365517684,1749736239610,-162.0,0.0002,2]
[365517685,1749736239619,-162.0,0.0002,2]
[365517686,1749736239630,-15940.84069626,0.0002,2]
[365517687,1749736239639,-166.97627253,0.00020087,2]
[365517688,1749736239649,-159.678411,0.00020187,2]
[365517689,1749736239659,-900.0,0.000205,2]
[365517691,1749736239669,-732.48750745,0.000209,4]
[365517693,1749736239679,-500.0,0.00020999,2]
[365517695,1749736239689,-500.0,0.00020999,2]
[365517697,1749736239699,-206.2591755,0.00020999,2]
[365517699,1749736239708,-500.0,0.00020999,2]
[365517701,1749736239718,-500.0,0.00020999,2]
[365517703,1749736239727,-500.0,0.00020999,2]
[365517705,1749736239737,-500.0,0.00020999,2]
[365517707,1749736239746,-500.0,0.00020999,2]
[365517709,1749736239756,-628.59507297,0.00020999,2]
[365517711,1749736239765,-425.72489173,0.00020999,2]
[365517713,1749736239775,-21419.0,0.00021,2]
[365517715,1749736239785,-162.0,0.00021,3]
[365517717,1749736239794,-162.0,0.00021,3]
[365517719,1749736239804,-162.0,0.00021,3]
[365517721,1749736239813,-162.0,0.00021,3]
[365517723,1749736239822,-162.0,0.00021,4]
[365517725,1749736239832,-162.0,0.00021,4]
[365517727,1749736239842,-732.48750743,0.00021038,4]
[365517729,1749736239852,-229.7508257,0.00021058,2]
[365517731,1749736239861,-424.26423502,0.00021058,2]
[365517733,1749736239871,-160.0,0.00021058,2]
[365517734,1749736239881,-16000.0,0.00021069,2]
[365517736,1749736239891,-15999.31837164,0.00021069,2]
[365517738,1749736239901,-160.0,0.00021094,2]
[365517739,1749736239911,-404.15921709,0.00021095,2]
[365517740,1749736239920,-203.99,0.00021095,4]
[365517741,1749736239932,-460.0,0.00021095,4]
[365517744,1749736239942,-672.35,0.00021095,2]
[365517745,1749736239952,-460.0,0.00021095,4]
[365517747,1749736239962,-721.43,0.00021095,4]
[365517749,1749736239972,-460.0,0.00021095,4]
[365517751,1749736239982,-1232.68,0.00021095,4]
[365517753,1749736239992,-710.6,0.00021095,4]
[365517754,1749736240001,-460.0,0.00021095,4]
[365517757,1749736240012,-640.44,0.00021095,4]
[365517758,1749736240022,-460.0,0.00021095,4]
[365517761,1749736240032,-855.01,0.00021095,4]
[365517763,1749736240042,-738.96,0.00021095,4]
[365517765,1749736240052,-460.0,0.00021095,4]
[365517766,1749736240064,-460.0,0.00021095,4]
[365517767,1749736240074,-460.0,0.00021095,4]
[365517768,1749736240084,-460.0,0.00021095,4]
[365517769,1749736240094,-457.2,0.00021095,4]
[365517770,1749736240103,-350.0,0.00021095,2]
[365517771,1749736240113,-709.03,0.00021095,4]
[365517772,1749736240122,-552.55,0.00021095,4]
[365517773,1749736240132,-536.79,0.00021095,4]
[365517774,1749736240141,-460.0,0.00021095,4]
[365517775,1749736240150,-151.85843746,0.00021095,2]
[365517776,1749736240160,-151.0,0.00021095,2]
[365517777,1749736240170,-460.0,0.00021095,4]
[365517779,1749736240180,-602.4,0.00021095,4]
[365517781,1749736240190,-1600.2,0.00021095,4]
[365517783,1749736240199,-867.53,0.00021095,4]
[365517785,1749736240209,-460.0,0.00021095,4]
[365517787,1749736240219,-205.79,0.00021095,4]
[365517789,1749736240228,-1234.22,0.00021095,4]
[365517790,1749736240238,-460.0,0.00021095,4]
[365517792,1749736240247,-1440.85,0.00021095,4]
[365517794,1749736240257,-732.48750743,0.00021176,4]
[365517796,1749736240267,-732.48750743,0.00021314,5]
[365517798,1749736240276,-460.0,0.00021369,4]
[365517800,1749736240286,-672.35,0.00021369,2]
[365517802,1749736240295,-423.17,0.00021369,4]
[365517803,1749736240305,-721.43,0.00021369,4]
[365517804,1749736240318,-496.39,0.00021369,4]
[365517805,1749736240327,-1232.68,0.00021369,4]
[365517806,1749736240337,-710.6,0.00021369,4]
[365517807,1749736240346,-570.85,0.00021369,4]
[365517808,1749736240355,-640.44,0.00021369,4]
[365517809,1749736240365,-460.0,0.00021369,4]
[365517810,1749736240375,-855.01,0.00021369,4]
[365517811,1749736240385,-738.96,0.00021369,4]
[365517812,1749736240395,-460.0,0.00021369,4]
[365517813,1749736240405,-460.0,0.00021369,4]
[365517814,1749736240415,-460.0,0.00021369,4]
[365517815,1749736240425,-460.0,0.00021369,4]
[365517816,1749736240435,-350.0,0.00021369,2]
[365517817,1749736240444,-709.03,0.00021369,4]
[365517818,1749736240454,-552.55,0.00021369,4]
[365517819,1749736240475,-536.79,0.00021369,4]
[365517820,1749736240484,-460.0,0.00021369,4]
[365517821,1749736240494,-460.0,0.00021369,4]
[365517822,1749736240504,-602.4,0.00021369,4]
[365517823,1749736240514,-1600.2,0.00021369,4]
[365517824,1749736240523,-867.53,0.00021369,4]
[365517825,1749736240534,-460.0,0.00021369,4]
[365517826,1749736240544,-1234.22,0.00021369,4]
[365517827,1749736240553,-522.37,0.00021369,4]
[365517828,1749736240566,-1440.85,0.00021369,4]
[365517829,1749736240576,-732.48750743,0.00021452,5]
[365517830,1749736240586,-1591.0,0.00021461,2]
[365517831,1749736240596,-500.0,0.00021583,2]
[365517832,1749736240606,-500.0,0.00021583,2]
[365517833,1749736240616,-500.0,0.00021585,2]
[365517834,1749736240626,-500.0,0.00021585,2]
[365517835,1749736240636,-501.27715008,0.00021585,2]
[365517837,1749736240646,-500.0,0.00021585,2]
[365517839,1749736240656,-500.0,0.00021585,2]
[365517842,1749736240666,-732.48750743,0.0002159,5]
[365517844,1749736240676,-656.07,0.00021623,3]
[365517846,1749736240686,-500.0,0.00021625,2]
[365517848,1749736240696,-412.71357031,0.00021625,2]
[365517850,1749736240706,-500.0,0.00021625,2]
[365517852,1749736240716,-501.49722536,0.00021625,2]
[365517854,1749736240726,-218.68,0.00021632,3]
[365517856,1749736240735,-437.37,0.00021633,3]
[365517858,1749736240745,-500.0,0.00021642,3]
[365517860,1749736240755,-262.88,0.00021643,4]
[365517862,1749736240765,-672.35,0.00021643,2]
[365517863,1749736240774,-721.43,0.00021643,4]
[365517864,1749736240784,-1232.68,0.00021643,4]
[365517865,1749736240793,-710.6,0.00021643,4]
[365517866,1749736240803,-640.44,0.00021643,4]
[365517867,1749736240813,-460.0,0.00021643,4]
[365517868,1749736240823,-855.01,0.00021643,4]
[365517869,1749736240832,-738.96,0.00021643,4]
[365517870,1749736240842,-460.0,0.00021643,4]
[365517871,1749736240851,-399.49,0.00021643,4]
[365517872,1749736240861,-460.0,0.00021643,4]
[365517873,1749736240871,-460.0,0.00021643,4]
[365517874,1749736240880,-160.0,0.00021643,2]
[365517875,1749736240889,-709.03,0.00021643,4]
[365517876,1749736240899,-552.55,0.00021643,4]
[365517877,1749736240909,-536.79,0.00021643,4]
[365517878,1749736240919,-460.0,0.00021643,4]
[365517879,1749736240931,-460.0,0.00021643,4]
[365517880,1749736240942,-602.4,0.00021643,4]
[365517881,1749736240952,-1600.2,0.00021643,4]
[365517882,1749736240962,-867.53,0.00021643,4]
[365517883,1749736240973,-460.0,0.00021643,4]
[365517884,1749736240983,-1234.22,0.00021643,4]
[365517885,1749736240992,-1440.85,0.00021643,4]
[365517887,1749736241002,-501.02187263,0.0002166,2]
[365517889,1749736241013,-372.48068192,0.0002168,2]
[365517891,1749736241023,-732.48750743,0.00021728,5]
[365517893,1749736241032,-732.48750743,0.00021866,6]
[365517895,1749736241041,-500.0,0.00021895,2]
[365517897,1749736241052,-500.0,0.00021895,2]
[365517899,1749736241063,-500.0,0.00021895,2]
[365517901,1749736241073,-500.0,0.00021895,2]
[365517904,1749736241086,-672.35,0.00021917,2]
[365517906,1749736241095,-721.43,0.00021917,4]
[365517908,1749736241105,-1232.68,0.00021917,4]
[365517910,1749736241114,-710.6,0.00021917,4]
[365517912,1749736241123,-640.44,0.00021917,4]
[365517914,1749736241133,-460.0,0.00021917,4]
[365517916,1749736241142,-855.01,0.00021917,4]
[365517918,1749736241151,-738.96,0.00021917,4]
[365517920,1749736241160,-460.0,0.00021917,4]
[365517922,1749736241171,-460.0,0.00021917,4]
[365517940,1749736241326,-460.0,0.00021917,4]
[365517942,1749736241337,-709.03,0.00021917,4]
[365517943,1749736241346,-552.55,0.00021917,4]
[365517944,1749736241356,-536.79,0.00021917,4]
[365517946,1749736241365,-566.6,0.00021917,4]
[365517948,1749736241375,-460.0,0.00021917,4]
[365517950,1749736241385,-500.0,0.00021917,2]
[365517952,1749736241395,-602.4,0.00021917,4]
[365517954,1749736241404,-1600.2,0.00021917,4]
[365517956,1749736241413,-867.53,0.00021917,4]
[365517958,1749736241423,-460.0,0.00021917,4]
[365517960,1749736241432,-1234.22,0.00021917,4]
[365517962,1749736241441,-1440.85,0.00021917,4]
[365517964,1749736241451,-207.4,0.00021922,2]
[365517966,1749736241460,-151.0,0.00021922,2]
[365517969,1749736241469,-5000.0,0.00021922,2]
[365517971,1749736241479,-151.0,0.00021922,2]
[365517973,1749736241489,-151.85738502,0.00021922,2]
[365517975,1749736241501,-1688.0,0.00021922,2]
[365517977,1749736241511,-500.0,0.00021922,2]
[365517979,1749736241520,-500.0,0.00021922,2]
[365517981,1749736241529,-500.0,0.00021922,2]
[365517983,1749736241540,-500.0,0.00021922,2]
[365517985,1749736241549,-500.0,0.00021922,2]
[365517987,1749736241560,-500.0,0.00021922,2]
[365517989,1749736241570,-500.0,0.00021922,2]
[365517991,1749736241579,-500.0,0.00021922,2]
[365517993,1749736241589,-500.0,0.00021922,2]
[365517995,1749736241599,-500.0,0.00021922,2]
[365517997,1749736241609,-500.0,0.00021922,2]
[365517999,1749736241618,-500.0,0.00021922,2]
[365518001,1749736241628,-500.0,0.00021922,2]
[365518003,1749736241637,-500.0,0.00021922,2]
[365518005,1749736241646,-500.0,0.00021922,2]
[365518007,1749736241655,-500.0,0.00021922,2]
[365518009,1749736241664,-500.0,0.00021922,2]
[365518011,1749736241674,-500.0,0.00021922,2]
[365518013,1749736241684,-500.0,0.00021922,2]
[365518015,1749736241694,-500.0,0.00021922,2]
[365518017,1749736241703,-500.0,0.00021922,2]
[365518019,1749736241713,-500.0,0.00021922,2]
[365518021,1749736241722,-500.0,0.00021922,2]
[365518023,1749736241732,-500.0,0.00021922,2]
[365518025,1749736241742,-500.0,0.00021922,2]
[365518027,1749736241751,-500.0,0.00021922,2]
[365518029,1749736241760,-500.0,0.00021922,2]
[365518031,1749736241770,-500.0,0.00021922,2]
[365518033,1749736241779,-500.0,0.00021922,2]
[365518035,1749736241788,-500.0,0.00021922,2]
[365518037,1749736241798,-210.8812712,0.00021922,2]
[365518039,1749736241807,-1750.456,0.00021977,2]
[365518041,1749736241817,-162.0,0.00022,5]
[365518043,1749736241827,-162.0,0.00022,5]
[365518044,1749736241836,-162.0,0.00022,4]
[365518045,1749736241845,-162.0,0.00022,4]
[365518046,1749736241855,-157.76880127,0.00022,3]
[365518047,1749736241864,-169.0,0.00022,2]
[365518048,1749736241874,-732.48750743,0.00022003,6]
[365518049,1749736241884,-500.0,0.0002203,2]
[365518050,1749736241893,-500.0,0.0002203,2]
[365518051,1749736241903,-500.0,0.0002203,2]
[365518052,1749736241912,-500.0,0.0002203,2]
[365518053,1749736241922,-550.21346612,0.0002203,2]
[365518054,1749736241933,-500.0,0.0002203,2]
[365518055,1749736241943,-500.0,0.0002203,2]
[365518056,1749736241953,-500.0,0.0002203,2]
[365518057,1749736241963,-500.0,0.0002203,2]
[365518058,1749736241973,-500.0,0.0002203,2]
[365518059,1749736241983,-500.0,0.0002203,2]
[365518060,1749736241992,-500.0,0.0002203,2]
[365518061,1749736242002,-500.0,0.0002203,2]
[365518062,1749736242012,-500.0,0.0002203,2]
[365518063,1749736242022,-500.0,0.0002203,2]
[365518064,1749736242032,-500.0,0.0002203,2]
[365518065,1749736242042,-764012.96631,0.00022031,2]
[365518066,1749736242052,-1815.222872,0.00022032,2]
[365518067,1749736242063,-500.0,0.00022073,2]
[365518068,1749736242072,-500.0,0.00022073,2]
[365518069,1749736242081,-500.0,0.00022073,2]
[365518070,1749736242091,-500.0,0.00022073,2]
[365518071,1749736242100,-500.0,0.00022073,2]
[365518072,1749736242109,-501.15123222,0.00022073,2]
[365518073,1749736242119,-511.32866103,0.00022073,2]
[365518074,1749736242128,-1882.38611826,0.00022087,2]
[365518075,1749736242138,-642.58741506,0.00022131,2]
[365518076,1749736242147,-1000.0,0.00022133,2]
[365518077,1749736242157,-1000.0,0.00022133,2]
[365518078,1749736242167,-732.48750743,0.00022141,6]
[365518079,1749736242177,-1952.03440464,0.00022142,2]
[365518080,1749736242187,-502.13328092,0.00022173,2]
[365518081,1749736242196,-361.52094909,0.00022173,2]
[365518082,1749736242206,-500.0,0.0002219,4]
[365518083,1749736242216,-672.35,0.00022191,2]
[365518084,1749736242226,-721.43,0.00022191,4]
[365518085,1749736242235,-1232.68,0.00022191,4]
[365518086,1749736242245,-710.6,0.00022191,4]
[365518087,1749736242254,-640.44,0.00022191,4]
[365518088,1749736242263,-460.0,0.00022191,4]
[365518089,1749736242274,-855.01,0.00022191,4]
[365518090,1749736242284,-738.96,0.00022191,4]
[365518091,1749736242294,-460.0,0.00022191,4]
[365518092,1749736242304,-460.0,0.00022191,4]
[365518093,1749736242316,-460.0,0.00022191,4]
[365518094,1749736242326,-709.03,0.00022191,4]
[365518095,1749736242336,-552.55,0.00022191,4]
[365518096,1749736242346,-536.79,0.00022191,4]
[365518097,1749736242356,-460.0,0.00022191,4]
[365518098,1749736242366,-602.4,0.00022191,4]
[365518099,1749736242377,-1600.2,0.00022191,4]
[365518100,1749736242386,-867.53,0.00022191,4]
[365518101,1749736242397,-261.40058324,0.00022191,4]
[365518102,1749736242407,-1234.22,0.00022191,4]
[365518103,1749736242416,-1440.85,0.00022191,4]
[365518104,1749736242426,-2024.25967761,0.00022197,2]
[365518105,1749736242435,-185.09474156,0.000222,69]
[365518106,1749736242445,-2099.15728568,0.00022252,2]
[365518107,1749736242454,-732.48750743,0.00022279,6]
[365518108,1749736242465,-2176.82610525,0.00022307,2]
[365518109,1749736242475,-500.0,0.00022348,2]
[365518110,1749736242484,-500.0,0.00022356,2]
[365518111,1749736242494,-2257.36867115,0.00022362,2]
[365518112,1749736242504,-623.88696206,0.00022367,2]
[365518113,1749736242514,-500.27378623,0.00022367,2]
[365518114,1749736242524,-500.0,0.0002237,2]
[365518115,1749736242533,-500.0,0.0002237,2]
[365518116,1749736242543,-503.93213778,0.0002237,2]
[365518117,1749736242553,-500.0,0.0002237,2]
[365518118,1749736242564,-500.0,0.0002237,2]
[365518120,1749736242574,-500.0,0.0002237,2]
[365518121,1749736242584,-500.0,0.0002237,2]
[365518122,1749736242593,-503.64293377,0.0002237,2]
[365518123,1749736242602,-2334.23583564,0.00022372,2]
[365518124,1749736242612,-151.0,0.000224,10]
[365518125,1749736242621,-2340.89131198,0.00022417,2]
[365518126,1749736242631,-732.48750743,0.00022417,7]
[365518127,1749736242640,-2115.0,0.0002243,4]
[365518128,1749736242650,-1000.0,0.00022443,2]
[365518129,1749736242660,-1000.0,0.00022443,2]
[365518130,1749736242669,-1000.0,0.00022443,2]
[365518131,1749736242679,-874.78,0.00022443,3]
[365518132,1749736242688,-160.0,0.00022464,2]
[365518133,1749736242698,-672.35,0.00022465,2]
[365518134,1749736242707,-721.43,0.00022465,4]
[365518135,1749736242716,-1232.68,0.00022465,4]
[365518136,1749736242726,-710.6,0.00022465,4]
[365518137,1749736242735,-640.44,0.00022465,4]
[365518138,1749736242745,-460.0,0.00022465,4]
[365518139,1749736242754,-855.01,0.00022465,4]
[365518140,1749736242764,-738.96,0.00022465,4]
[365518141,1749736242773,-460.0,0.00022465,4]
[365518142,1749736242782,-460.0,0.00022465,4]
[365518143,1749736242791,-460.0,0.00022465,4]
[365518144,1749736242801,-709.03,0.00022465,4]
[365518145,1749736242811,-552.55,0.00022465,4]
[365518146,1749736242820,-536.79,0.00022465,4]
[365518147,1749736242829,-297.38,0.00022465,4]
[365518148,1749736242838,-602.4,0.00022465,4]
[365518149,1749736242848,-1600.2,0.00022465,4]
[365518150,1749736242858,-867.53,0.00022465,4]
[365518151,1749736242868,-1234.22,0.00022465,4]
[365518153,1749736242877,-1440.85,0.00022465,4]
[365518154,1749736242887,-500.0,0.00022466,2]
[365518155,1749736242896,-500.0,0.00022466,2]
[365518156,1749736242906,-500.0,0.00022466,2]
[365518157,1749736242916,-500.0,0.00022466,2]
[365518158,1749736242927,-500.0,0.00022466,2]
[365518159,1749736242943,-500.0,0.00022466,2]
[365518160,1749736242954,-500.0,0.00022466,2]
[365518161,1749736242964,-500.0,0.00022466,2]
[365518162,1749736242974,-500.0,0.00022466,2]
[365518163,1749736242984,-500.0,0.00022466,2]
[365518164,1749736242994,-500.0,0.00022466,2]
[365518165,1749736243004,-500.0,0.00022466,2]
[365518166,1749736243014,-438.18180316,0.00022466,2]
[365518167,1749736243024,-500.0,0.00022466,2]
[365518168,1749736243034,-500.0,0.00022466,2]
[365518169,1749736243043,-500.0,0.00022466,2]
[365518170,1749736243052,-500.0,0.00022466,2]
[365518171,1749736243063,-500.0,0.00022466,2]
[365518172,1749736243073,-500.0,0.00022466,2]
[365518173,1749736243082,-151.3462781,0.0002247,2]
[365518174,1749736243092,-5000.0,0.0002247,2]
[365518176,1749736243102,-2427.50429052,0.00022472,2]
[365518177,1749736243111,-223.44416616,0.00022482,2]
[365518178,1749736243121,-151.0,0.000225,5]
[365518179,1749736243131,-2517.32194927,0.00022527,2]
[365518180,1749736243141,-732.48750743,0.00022555,7]
[365518181,1749736243151,-2610.4628614,0.00022582,2]
[365518182,1749736243160,-500.0,0.00022621,2]
[365518183,1749736243170,-1000.0,0.00022621,2]
[365518184,1749736243180,-1000.0,0.00022621,2]
[365518185,1749736243190,-504.49898345,0.00022621,2]
[365518186,1749736243199,-2126.80154095,0.00022637,2]
[365518187,1749736243209,-1141.68336327,0.00022681,2]
[365518188,1749736243218,-1500.0,0.00022681,2]
[365518189,1749736243227,-732.48750743,0.00022693,7]
[365518190,1749736243237,-151.0,0.000227,10]
[365518191,1749736243246,-151.0,0.000227,9]
[365518192,1749736243255,-500.0,0.00022738,5]
[365518193,1749736243265,-672.35,0.00022739,2]
[365518194,1749736243274,-721.43,0.00022739,4]